fUSD/lending_fUSD_20251227
["ID","MTS","AMOUNT","RATE_DAILY","PERIOD"]
[399918316,1766873444908,-396.79874851,0.00035616,9]
[399918317,1766873444918,-411.24796854,0.00035616,9]
[399918318,1766873444928,-196.91753584,0.00035616,9]
[399918319,1766873444939,-500.0,0.00035616,9]
[399918320,1766873444949,-418.73464199,0.00035616,9]
[399918321,1766873444960,-410.58381968,0.00035616,9]
[399918322,1766873444971,-622.55300032,0.00035616,9]
[399918323,1766873444980,-500.0,0.00035616,9]
[399918324,1766873444990,-500.0,0.00035616,9]
[399918325,1766873445001,-412.958829,0.00035616,9]
[399918326,1766873445011,-410.27159188,0.00035616,9]
[399918327,1766873445021,-500.0,0.00035616,9]
[399918328,1766873445032,-400.0,0.00035616,9]
[399918329,1766873445043,-430.74438897,0.00035616,9]
[399918330,1766873445053,-500.0,0.00035616,9]
[399918331,1766873445063,-500.0,0.00035616,9]
[399918332,1766873445073,-500.0,0.00035616,9]
[399918333,1766873445083,-400.0,0.00035616,9]
[399918334,1766873445093,-403.88710295,0.00035616,9]
[399918335,1766873445102,-500.0,0.00035616,9]
[399918336,1766873445113,-410.0579551,0.00035616,9]
[399918338,1766873445122,-500.0,0.00035616,9]
[399918339,1766873445132,-500.0,0.00035616,9]
[399918340,1766873445142,-500.0,0.00035616,9]
[399918341,1766873445152,-500.0,0.00035616,9]
[399918342,1766873445162,-578.49637201,0.00035616,9]
[399918343,1766873445172,-402.11433076,0.00035616,9]
[399918345,1766873445182,-500.0,0.00035616,9]
[399918346,1766873445192,-400.0,0.00035616,9]
[399918347,1766873445202,-500.0,0.00035616,9]
[399918349,1766873445212,-409.80754643,0.00035616,9]
[399918350,1766873445222,-450.16219433,0.00035616,9]
[399918351,1766873445232,-400.0,0.00035616,9]
[399918352,1766873445241,-617.03993956,0.00035616,9]
[399918354,1766873445252,-406.97099483,0.00035616,9]
[399918356,1766873445263,-430.88060167,0.00035616,9]
[399918358,1766873445272,-500.0,0.00035616,9]
[399918360,1766873445282,-500.0,0.00035616,9]
[399918362,1766873445292,-416.60111008,0.00035616,9]
[399918364,1766873445302,-522.6390235,0.00035616,9]
[399918365,1766873445312,-410.93962456,0.00035616,9]
[399918366,1766873445324,-500.0,0.00035616,9]
[399918367,1766873445334,-400.0,0.00035616,9]
[399918368,1766873445345,-409.17964886,0.00035616,9]
[399918369,1766873445355,-500.0,0.00035616,9]
[399918370,1766873445366,-500.0,0.00035616,9]
[399918371,1766873445375,-409.79289386,0.00035616,9]
[399918372,1766873445385,-400.0,0.00035616,9]
[399918373,1766873445395,-500.0,0.00035616,9]
[399918374,1766873445405,-428.00843306,0.00035616,9]
[399918375,1766873445415,-500.0,0.00035616,9]
[399918376,1766873445424,-500.0,0.00035616,9]
[399918377,1766873445434,-400.68986501,0.00035616,9]
[399918378,1766873445444,-408.06977181,0.00035616,9]
[399918379,1766873445454,-500.0,0.00035616,9]
[399918380,1766873445464,-500.0,0.00035616,9]
[399918381,1766873445475,-421.14733895,0.00035616,9]
[399918382,1766873445485,-440.49599239,0.00035616,9]
[399918383,1766873445495,-400.0,0.00035616,9]
[399918384,1766873445505,-400.0,0.00035616,9]
[399918385,1766873445515,-500.0,0.00035616,9]
[399918386,1766873445525,-434.75451459,0.00035616,9]
[399918387,1766873445535,-603.04975054,0.00035616,9]
[399918388,1766873445544,-400.0,0.00035616,9]
[399918389,1766873445555,-500.0,0.00035616,9]
[399918390,1766873445564,-500.0,0.00035616,9]
[399918391,1766873445574,-500.0,0.00035616,9]
[399918392,1766873445584,-500.0,0.00035616,9]
[399918393,1766873445594,-422.91305896,0.00035616,9]
[399918394,1766873445604,-433.66278198,0.00035616,9]
[399918395,1766873445614,-404.40551085,0.00035616,9]
[399918396,1766873445624,-500.0,0.00035616,9]
[399918397,1766873445634,-415.21369606,0.00035616,9]
[399918398,1766873445644,-500.0,0.00035616,9]
[399918399,1766873445654,-400.0,0.00035616,9]
[399918400,1766873445664,-500.0,0.00035616,9]
[399918401,1766873445674,-400.0,0.00035616,9]
[399918402,1766873445684,-400.0,0.00035616,9]
[399918403,1766873445694,-500.0,0.00035616,9]
[399918404,1766873445704,-409.54105327,0.00035616,9]
[399918405,1766873445713,-400.0,0.00035616,9]
[399918406,1766873445724,-500.0,0.00035616,9]
[399918407,1766873445734,-400.0,0.00035616,9]
[399918408,1766873445744,-400.0,0.00035616,9]
[399918409,1766873445754,-500.0,0.00035616,9]
[399918411,1766873445764,-416.65513937,0.00035616,9]
[399918412,1766873446013,-403.66734905,0.00035616,9]
[399918413,1766873446023,-426.09634769,0.00035616,9]
[399918414,1766873446033,-400.06055101,0.00035616,9]
[399918415,1766873446043,-500.0,0.00035616,9]
[399918416,1766873446053,-500.0,0.00035616,9]
[399918417,1766873446063,-400.0,0.00035616,9]
[399918418,1766873446073,-400.0,0.00035616,9]
[399918419,1766873446082,-534.81317839,0.00035616,9]
[399918420,1766873446092,-500.0,0.00035616,9]
[399918421,1766873446102,-500.0,0.00035616,9]
[399918422,1766873446112,-500.0,0.00035616,9]
[399918423,1766873446121,-500.0,0.00035616,9]
[399918424,1766873446131,-500.0,0.00035616,9]
[399918425,1766873446141,-392.89182845,0.00035616,9]
[399918426,1766873446150,-400.0,0.00035616,9]
[399918427,1766873446160,-414.85336003,0.00035616,9]
[399918428,1766873446169,-400.0,0.00035616,9]
[399918429,1766873446179,-407.90878698,0.00035616,9]
[399918430,1766873446189,-500.0,0.00035616,9]
[399918431,1766873446199,-500.0,0.00035616,9]
[399918432,1766873446209,-500.0,0.00035616,9]
[399918433,1766873446219,-500.0,0.00035616,9]
[399918434,1766873446229,-400.0,0.00035616,9]
[399918435,1766873446240,-489.07761767,0.00035616,9]
[399918436,1766873446250,-400.0,0.00035616,9]
[399918437,1766873446260,-331.20072529,0.00035616,9]
[399918438,1766873446270,-641.02756563,0.00035616,9]
[399918439,1766873446279,-500.0,0.00035616,9]
[399918440,1766873446289,-412.49008198,0.00035616,9]
[399918441,1766873446298,-500.0,0.00035616,9]
[399918442,1766873446308,-500.0,0.00035616,9]
[399918443,1766873446318,-500.0,0.00035616,9]
[399918444,1766873446327,-253.18972927,0.00035616,9]
[399918445,1766873446337,-500.0,0.00035616,9]
[399918446,1766873446347,-400.0,0.00035616,9]
[399918447,1766873446356,-500.0,0.00035616,9]
[399918448,1766873446366,-419.76470854,0.00035616,9]
[399918449,1766873446376,-400.0,0.00035616,9]
[399918450,1766873446385,-418.41415196,0.00035616,9]
[399918451,1766873446395,-400.0,0.00035616,9]
[399918452,1766873446404,-433.64068803,0.00035616,9]
[399918453,1766873446413,-610.45383173,0.00035616,9]
[399918454,1766873446422,-427.57133567,0.00035616,9]
[399918455,1766873446432,-500.0,0.00035616,9]
[399918456,1766873446441,-500.0,0.00035616,9]
[399918457,1766873446451,-248.941271,0.00035616,31]
[399918458,1766873446460,-400.0,0.00035616,9]
[399918459,1766873446471,-500.0,0.00035616,9]
[399918460,1766873446480,-500.0,0.00035616,9]
[399918461,1766873446490,-413.6567306,0.00035616,9]
[399918462,1766873446500,-500.0,0.00035616,9]
[399918463,1766873446510,-430.13134668,0.00035616,9]
[399918464,1766873446519,-500.0,0.00035616,9]
[399918465,1766873446529,-321.82260599,0.00035616,9]
[399918466,1766873446539,-423.94874077,0.00035616,9]
[399918467,1766873446549,-500.0,0.00035616,9]
[399918468,1766873446558,-422.3761475,0.00035616,9]
[399918469,1766873446567,-420.91119327,0.00035616,9]
[399918470,1766873446577,-400.0,0.00035616,9]
[399918471,1766873446586,-400.0,0.00035616,9]
[399918472,1766873446595,-500.0,0.00035616,9]
[399918473,1766873446605,-500.0,0.00035616,9]
[399918474,1766873446614,-400.0,0.00035616,9]
[399918475,1766873446623,-500.0,0.00035616,9]
[399918476,1766873446632,-500.0,0.00035616,9]
[399918477,1766873446643,-500.0,0.00035616,9]
[399918478,1766873446652,-500.0,0.00035616,9]
[399918479,1766873446662,-409.37037174,0.00035616,9]
[399918480,1766873446671,-400.0,0.00035616,9]
[399918481,1766873446680,-425.1988051,0.00035616,9]
[399918482,1766873446689,-500.0,0.00035616,9]
[399918483,1766873446699,-500.0,0.00035616,9]
[399918484,1766873446708,-423.42108705,0.00035616,9]
[399918485,1766873446718,-411.48423226,0.00035616,9]
[399918486,1766873446728,-500.0,0.00035616,9]
[399918487,1766873446739,-432.59870938,0.00035616,9]
[399918488,1766873446748,-430.12399028,0.00035616,9]
[399918489,1766873446758,-413.18195599,0.00035616,9]
[399918490,1766873446767,-500.0,0.00035616,9]
[399918491,1766873446776,-500.0,0.00035616,9]
[399918492,1766873446785,-500.0,0.00035616,9]
[399918493,1766873446795,-500.0,0.00035616,9]
[399918494,1766873446803,-400.0,0.00035616,9]
[399918495,1766873446812,-510.02449753,0.00035616,9]
[399918496,1766873446822,-500.0,0.00035616,9]
[399918497,1766873446831,-400.0,0.00035616,9]
[399918498,1766873446844,-315.33965945,0.00035616,9]
[399918499,1766873446853,-361.46,0.00035616,9]
[399918500,1766873446862,-400.0,0.00035616,9]
[399918501,1766873446872,-500.0,0.00035616,9]
[399918502,1766873446882,-500.0,0.00035616,9]
[399918503,1766873446891,-410.31633594,0.00035616,9]
[399918504,1766873446900,-416.0338469,0.00035616,9]
[399918505,1766873446909,-418.02268866,0.00035616,9]
[399918506,1766873446918,-500.0,0.00035616,9]
[399918507,1766873446927,-400.0,0.00035616,9]
[399918508,1766873446937,-500.0,0.00035616,9]
[399918509,1766873446946,-500.0,0.00035616,9]
[399918510,1766873446955,-412.91319842,0.00035616,9]
[399918511,1766873446964,-500.0,0.00035616,9]
[399918512,1766873446974,-409.65341812,0.00035616,9]
[399918513,1766873446983,-406.9507165,0.00035616,9]
[399918514,1766873446992,-359.47003236,0.00035616,9]
[399918515,1766873447002,-500.0,0.00035616,9]
[399918516,1766873447012,-500.0,0.00035616,9]
[399918517,1766873447021,-423.52183369,0.00035616,9]
[399918518,1766873447031,-500.0,0.00035616,9]
[399918519,1766873447041,-500.0,0.00035616,9]
[399918520,1766873447060,-403.31667164,0.00035616,9]
[399918521,1766873447070,-413.06167835,0.00035616,9]
[399918522,1766873447079,-595.55422569,0.00035616,9]
[399918523,1766873447089,-500.0,0.00035616,9]
[399918524,1766873447098,-500.0,0.00035616,9]
[399918525,1766873447108,-410.99449444,0.00035616,9]
[399918526,1766873447117,-500.0,0.00035616,9]
[399918527,1766873447126,-405.26737624,0.00035616,9]
[399918528,1766873447135,-467.18262915,0.00035616,9]
[399918529,1766873447146,-500.0,0.00035616,9]
[399918530,1766873447156,-466.81111476,0.00035616,9]
[399918531,1766873447165,-404.25265799,0.00035616,9]
[399918532,1766873447175,-500.0,0.00035616,9]
[399918533,1766873447184,-328.4419324,0.00035616,9]
[399918534,1766873447194,-409.94107134,0.00035616,9]
[399918535,1766873447204,-410.6394641,0.00035616,9]
[399918536,1766873447213,-500.0,0.00035616,9]
[399918537,1766873447223,-500.0,0.00035616,9]
[399918538,1766873447233,-500.0,0.00035616,9]
[399918539,1766873447242,-500.0,0.00035616,9]
[399918540,1766873447252,-500.0,0.00035616,9]
[399918541,1766873447262,-500.0,0.00035616,9]
[399918542,1766873447272,-440.7150287,0.00035616,9]
[399918543,1766873447282,-500.0,0.00035616,9]
[399918544,1766873447292,-500.0,0.00035616,9]
[399918545,1766873447302,-500.0,0.00035616,9]
[399918546,1766873447311,-500.0,0.00035616,9]
[399918547,1766873447320,-500.0,0.00035616,9]
[399918548,1766873447330,-500.0,0.00035616,9]
[399918549,1766873447340,-233.88,0.00035616,9]
[399918550,1766873447349,-344.21204105,0.00035616,9]
[399918551,1766873447359,-311.88949593,0.00035616,9]
[399918552,1766873447368,-413.18830762,0.00035616,9]
[399918553,1766873447378,-411.95281594,0.00035616,9]
[399918554,1766873447387,-405.55889765,0.00035616,9]
[399918555,1766873447397,-400.0,0.00035616,9]
[399918556,1766873447407,-322.90171004,0.00035616,9]
[399918557,1766873447416,-500.0,0.00035616,9]
[399918558,1766873447425,-408.03824554,0.00035616,9]
[399918559,1766873447435,-400.0,0.00035616,9]
[399918560,1766873447445,-500.0,0.00035616,9]
[399918561,1766873447454,-500.0,0.00035616,9]
[399918562,1766873447463,-605.45118163,0.00035616,9]
[399918563,1766873447473,-406.74613099,0.00035616,9]
[399918564,1766873447482,-409.34871315,0.00035616,9]
[399918565,1766873447492,-500.0,0.00035616,9]
[399918566,1766873447506,-500.0,0.00035616,9]
[399918567,1766873447515,-500.0,0.00035616,9]
[399918568,1766873447525,-406.57695248,0.00035616,9]
[399918569,1766873447535,-500.0,0.00035616,9]
[399918570,1766873447544,-500.0,0.00035616,9]
[399918571,1766873447554,-500.0,0.00035616,9]
[399918572,1766873447563,-400.0,0.00035616,9]
[399918573,1766873447573,-500.0,0.00035616,9]
[399918574,1766873447582,-500.0,0.00035616,9]
[399918575,1766873447591,-400.0,0.00035616,9]
[399918576,1766873447601,-407.88332476,0.00035616,9]
[399918577,1766873447611,-500.0,0.00035616,9]
[399918578,1766873447620,-500.0,0.00035616,9]
[399918579,1766873447630,-404.57060035,0.00035616,9]
[399918580,1766873447640,-500.0,0.00035616,9]
[399918581,1766873447650,-400.0,0.00035616,9]
[399918582,1766873447659,-500.0,0.00035616,9]
[399918583,1766873447670,-400.0,0.00035616,9]
[399918584,1766873447679,-437.48236678,0.00035616,9]
[399918585,1766873447688,-400.0,0.00035616,9]
[399918586,1766873447698,-500.0,0.00035616,9]
[399918587,1766873447715,-500.0,0.00035616,9]
[399918588,1766873447725,-463.97659204,0.00035616,9]
[399918589,1766873447735,-404.37269221,0.00035616,9]
[399918590,1766873447744,-500.0,0.00035616,9]
[399918591,1766873447753,-400.0,0.00035616,9]
[399918592,1766873447762,-405.6473604,0.00035616,9]
[399918593,1766873447771,-500.0,0.00035616,9]
[399918594,1766873447781,-416.59219846,0.00035616,9]
[399918595,1766873447790,-500.0,0.00035616,9]
[399918596,1766873447800,-430.76233166,0.00035616,9]
[399918597,1766873447809,-400.0,0.00035616,9]
[399918598,1766873447818,-500.0,0.00035616,9]
[399918599,1766873447828,-411.90719216,0.00035616,9]
[399918600,1766873447838,-420.08270813,0.00035616,9]
[399918601,1766873447852,-500.0,0.00035616,9]
[399918602,1766873447861,-404.01494929,0.00035616,9]
[399918603,1766873447871,-502.40332327,0.00035616,9]
[399918604,1766873447880,-411.33533345,0.00035616,9]
[399918605,1766873447890,-500.0,0.00035616,9]
[399918606,1766873447899,-429.14115516,0.00035616,9]
[399918607,1766873447910,-500.0,0.00035616,9]
[399918608,1766873447920,-509.95275093,0.00035616,9]
[399918609,1766873447930,-400.0,0.00035616,9]
[399918610,1766873447940,-405.79221202,0.00035616,9]
[399918611,1766873447950,-500.0,0.00035616,9]
[399918612,1766873447960,-408.91777081,0.00035616,9]
[399918613,1766873447969,-402.61861095,0.00035616,9]
[399918614,1766873447979,-402.97438948,0.00035616,9]
[399918615,1766873447989,-500.0,0.00035616,9]
[399918616,1766873447999,-465.08176222,0.00035616,9]
[399918617,1766873448009,-411.2879665,0.00035616,9]
[399918618,1766873448019,-463.34077068,0.00035616,9]
[399918619,1766873448029,-500.0,0.00035616,9]
[399918620,1766873448039,-406.2242033,0.00035616,9]
[399918621,1766873448048,-404.27091909,0.00035616,9]
[399918622,1766873448058,-500.0,0.00035616,9]
[399918623,1766873448068,-426.04349597,0.00035616,9]
[399918624,1766873448080,-390.47251407,0.00035616,9]
[399918625,1766873448089,-457.72974973,0.00035616,9]
[399918626,1766873448113,-410.68962433,0.00035616,9]
[399918627,1766873448124,-402.85762594,0.00035616,9]
[399918628,1766873448134,-500.0,0.00035616,9]
[399918629,1766873448144,-500.0,0.00035616,9]
[399918630,1766873448154,-400.0,0.00035616,9]
[399918631,1766873448164,-426.24783642,0.00035616,9]
[399918632,1766873448174,-500.0,0.00035616,9]
[399918633,1766873448185,-405.76167815,0.00035616,9]
[399918634,1766873448195,-500.0,0.00035616,9]
[399918635,1766873448205,-402.22112084,0.00035616,9]
[399918636,1766873448215,-500.0,0.00035616,9]
[399918637,1766873448226,-405.62582418,0.00035616,9]
[399918638,1766873448236,-415.50574063,0.00035616,9]
[399918639,1766873448246,-401.26939888,0.00035616,9]
[399918640,1766873448256,-500.0,0.00035616,9]
[399918641,1766873448266,-400.0,0.00035616,9]
[399918642,1766873448276,-500.0,0.00035616,9]
[399918643,1766873448286,-500.0,0.00035616,9]
[399918644,1766873448297,-500.0,0.00035616,9]
[399918645,1766873448307,-151.0,0.00035616,31]
[399918646,1766873448317,-500.0,0.00035616,9]
[399918647,1766873448327,-404.69474061,0.00035616,9]
[399918648,1766873448337,-696.37,0.00035616,9]
[399918649,1766873448347,-404.47397276,0.00035616,9]
[399918650,1766873448364,-500.0,0.00035616,9]
[399918651,1766873448374,-151.0,0.00035616,14]
[399918652,1766873448384,-409.88653157,0.00035616,9]
[399918653,1766873448394,-500.0,0.00035616,9]
[399918654,1766873448403,-298.038457,0.00035616,14]
[399918655,1766873448413,-406.46321781,0.00035616,9]
[399918656,1766873448423,-413.32543622,0.00035616,9]
[399918657,1766873448433,-406.82587324,0.00035616,9]
[399918658,1766873448443,-408.82620735,0.00035616,9]
[399918659,1766873448452,-151.0,0.00035616,2]
[399918660,1766873448462,-400.0,0.00035616,9]
[399918661,1766873448471,-412.82266519,0.00035616,9]
[399918662,1766873448481,-151.0,0.00035616,2]
[399918663,1766873448490,-406.37967247,0.00035616,9]
[399918664,1766873448499,-405.52557205,0.00035616,9]
[399918665,1766873448509,-402.97364282,0.00035616,9]
[399918666,1766873448519,-510.51946461,0.00035616,9]
[399918667,1766873448529,-230.59844011,0.00035616,9]
[399918668,1766873448539,-404.96114342,0.00035616,9]
[399918669,1766873448548,-500.0,0.00035616,9]
[399918670,1766873448558,-404.43788449,0.00035616,9]
[399918671,1766873448567,-500.0,0.00035616,9]
[399918672,1766873448577,-500.0,0.00035616,9]
[399918673,1766873448586,-406.06270123,0.00035616,9]
[399918674,1766873448596,-500.0,0.00035616,9]
[399918675,1766873448606,-563.07286896,0.00035616,9]
[399918676,1766873448615,-400.0,0.00035616,9]
[399918677,1766873448625,-400.0,0.00035616,9]
[399918678,1766873448634,-500.0,0.00035616,9]
[399918679,1766873448643,-353.77753769,0.00035616,9]
[399918680,1766873448653,-500.0,0.00035616,9]
[399918681,1766873448663,-451.89694028,0.00035616,9]
[399918682,1766873448672,-500.0,0.00035616,9]
[399918683,1766873448681,-464.6704363,0.00035616,9]
[399918684,1766873448691,-408.643201,0.00035616,9]
[399918685,1766873448700,-405.68847952,0.00035616,9]
[399918686,1766873448710,-587.6175362,0.00035616,9]
[399918687,1766873448719,-405.47154572,0.00035616,9]
[399918688,1766873448729,-404.06615695,0.00035616,9]
[399918689,1766873448738,-500.0,0.00035616,9]
[399918690,1766873448747,-400.0,0.00035616,9]
[399918691,1766873448757,-400.0,0.00035616,9]
[399918692,1766873448766,-500.0,0.00035616,9]
[399918693,1766873448777,-413.58334665,0.00035616,9]
[399918694,1766873448790,-406.25434843,0.00035616,9]
[399918695,1766873448804,-427.75534819,0.00035616,9]
[399918696,1766873448820,-407.37716107,0.00035616,9]
[399918697,1766873448835,-429.97642613,0.00035616,9]
[399918698,1766873448851,-500.0,0.00035616,9]
[399918699,1766873448866,-251.07597262,0.00035616,9]
[399918700,1766873448879,-400.0,0.00035616,9]
[399918701,1766873448890,-500.0,0.00035616,9]
[399918702,1766873448902,-400.0,0.00035616,9]
[399918703,1766873448917,-500.0,0.00035616,9]
[399918704,1766873448931,-500.0,0.00035616,9]
[399918705,1766873448943,-500.0,0.00035616,9]
[399918706,1766873448956,-411.08621402,0.00035616,9]
[399918707,1766873448968,-500.0,0.00035616,9]
[399918708,1766873448980,-500.0,0.00035616,9]
[399918709,1766873448994,-199.0779331,0.00035616,9]
[399918710,1766873449008,-500.0,0.00035616,9]
[399918711,1766873449021,-999.0,0.00035616,120]
[399918712,1766873449036,-500.0,0.00035616,9]
[399918713,1766873449048,-151.0,0.00035616,31]
[399918714,1766873449062,-151.0,0.00035616,31]
[399918715,1766873449074,-413.76865237,0.00035616,9]
[399918716,1766873449086,-500.0,0.00035616,9]
[399918717,1766873449098,-500.0,0.00035616,9]
[399918718,1766873449108,-561.68942326,0.00035616,9]
[399918719,1766873449121,-500.0,0.00035616,9]
[399918720,1766873449134,-420.55678679,0.00035616,9]
[399918721,1766873449147,-562.55451896,0.00035616,9]
[399918722,1766873449160,-500.0,0.00035616,9]
[399918723,1766873449172,-500.0,0.00035616,9]
[399918724,1766873449184,-500.0,0.00035616,9]
[399918725,1766873449197,-500.0,0.00035616,9]
[399918726,1766873449208,-178.67,0.00035616,9]
[399918727,1766873449221,-500.0,0.00035616,9]
[399918728,1766873449233,-500.0,0.00035616,9]
[399918729,1766873449245,-151.0,0.00035616,31]
[399918730,1766873449258,-442.21915848,0.00035616,9]
[399918731,1766873449271,-500.0,0.00035616,9]
[399918732,1766873449284,-400.0,0.00035616,9]
[399918733,1766873449296,-151.0,0.00035616,31]
[399918734,1766873449308,-580.62567087,0.00035616,9]
[399918735,1766873449320,-400.0,0.00035616,9]
[399918736,1766873449333,-500.0,0.00035616,9]
[399918737,1766873449348,-400.0,0.00035616,9]
[399918738,1766873449361,-284.63871166,0.00035616,9]
[399918739,1766873449373,-500.0,0.00035616,9]
[399918740,1766873449385,-500.0,0.00035616,9]
[399918741,1766873449398,-400.0,0.00035616,9]
[399918742,1766873449409,-201.20185578,0.00035616,9]
[399918743,1766873449423,-500.0,0.00035616,9]
[399918744,1766873449435,-500.0,0.00035616,9]
[399918745,1766873449446,-500.0,0.00035616,9]
[399918746,1766873449458,-500.0,0.00035616,9]
[399918747,1766873449472,-500.0,0.00035616,9]
[399918748,1766873449483,-401.8681693,0.00035616,9]
[399918749,1766873449496,-500.0,0.00035616,9]
[399918750,1766873449509,-312.7022948,0.00035616,9]
[399918751,1766873449523,-494.54289782,0.00035616,9]
[399918752,1766873449535,-500.0,0.00035616,9]
[399918753,1766873449548,-500.0,0.00035616,9]
[399918754,1766873449559,-500.0,0.00035616,9]
[399918755,1766873449572,-500.0,0.00035616,9]
[399918756,1766873449584,-258.53345845,0.00035616,9]
[399918757,1766873449595,-417.02549639,0.00035616,9]
[399918758,1766873449606,-500.0,0.00035616,9]
[399918759,1766873449616,-411.74857606,0.00035616,9]
[399918760,1766873449626,-500.0,0.00035616,9]
[399918761,1766873449638,-500.0,0.00035616,9]
[399918762,1766873449649,-500.0,0.00035616,9]
[399918763,1766873449660,-400.0,0.00035616,9]
[399918764,1766873449673,-500.0,0.00035616,9]
[399918765,1766873449686,-500.0,0.00035616,9]
[399918766,1766873449699,-500.0,0.00035616,9]
[399918767,1766873449710,-500.0,0.00035616,9]
[399918768,1766873449721,-438.97023252,0.00035616,9]
[399918769,1766873449731,-500.0,0.00035616,9]
[399918770,1766873449741,-500.0,0.00035616,9]
[399918771,1766873449752,-500.0,0.00035616,9]
[399918772,1766873449763,-500.0,0.00035616,9]
[399918773,1766873449774,-500.0,0.00035616,9]
[399918774,1766873449785,-500.0,0.00035616,9]
[399918775,1766873449798,-500.0,0.00035616,9]
[399918776,1766873449811,-500.0,0.00035616,9]
[399918777,1766873449823,-400.0,0.00035616,9]
[399918778,1766873449835,-500.0,0.00035616,9]
[399918779,1766873449845,-500.0,0.00035616,9]
[399918780,1766873449859,-500.0,0.00035616,9]
[399918781,1766873449871,-500.0,0.00035616,9]
[399918782,1766873449882,-549.25196944,0.00035616,9]
[399918783,1766873449893,-430.99286565,0.00035616,9]
[399918784,1766873449906,-607.2349194,0.00035616,9]
[399918785,1766873449917,-500.0,0.00035616,9]
[399918786,1766873449930,-500.0,0.00035616,9]
[399918787,1766873449941,-500.0,0.00035616,9]
[399918788,1766873449952,-468.5292306,0.00035616,9]
[399918789,1766873449963,-500.0,0.00035616,9]
[399918790,1766873449974,-400.0,0.00035616,9]
[399918791,1766873449985,-500.0,0.00035616,9]
[399918792,1766873449996,-400.0,0.00035616,9]
[399918793,1766873450007,-500.0,0.00035616,9]
[399918794,1766873450018,-500.0,0.00035616,9]
[399918795,1766873450029,-500.0,0.00035616,9]
[399918796,1766873450042,-400.0,0.00035616,9]
[399918797,1766873450054,-500.0,0.00035616,9]
[399918798,1766873450065,-500.0,0.00035616,9]
[399918799,1766873450077,-386.58079546,0.00035616,9]
[399918800,1766873450088,-400.0,0.00035616,9]
[399918801,1766873450100,-500.0,0.00035616,9]
[399918802,1766873450112,-500.0,0.00035616,9]
[399918803,1766873450124,-500.0,0.00035616,9]
[399918804,1766873450135,-500.0,0.00035616,9]
[399918805,1766873450146,-500.0,0.00035616,9]
[399918806,1766873450160,-500.0,0.00035616,9]
[399918807,1766873450171,-500.0,0.00035616,9]
[399918808,1766873450183,-408.64074857,0.00035616,9]
[399918809,1766873450194,-500.0,0.00035616,9]
[399918810,1766873450205,-500.0,0.00035616,9]
[399918811,1766873450217,-500.0,0.00035616,9]
[399918812,1766873450228,-500.0,0.00035616,9]
[399918813,1766873450240,-500.0,0.00035616,9]
[399918814,1766873450251,-500.0,0.00035616,9]
[399918815,1766873450262,-500.0,0.00035616,9]
[399918816,1766873450275,-500.0,0.00035616,9]
[399918817,1766873450286,-500.0,0.00035616,9]
[399918818,1766873450297,-500.0,0.00035616,9]
[399918819,1766873450308,-416.01237731,0.00035616,9]
[399918820,1766873450319,-500.0,0.00035616,9]
[399918821,1766873450330,-500.0,0.00035616,9]
[399918822,1766873450341,-634.61255946,0.00035616,9]
[399918823,1766873450352,-500.0,0.00035616,9]
[399918824,1766873450363,-500.0,0.00035616,9]
[399918825,1766873450373,-400.0,0.00035616,9]